[Event "Early-Titled-Tuesday-Blitz-June-18-2024"]
[Site "Chess.com"]
[Date "2024.06.18"]
[Round "3"]
[White "Rud_Makarian"]
[Black "Hirna2005"]
[Result "1-0"]
[WhiteElo "3064"]
[BlackElo "2306"]
[TimeControl "180+1"]
[EndTime "8:29:20 PDT"]
[Termination "Rud_Makarian won by resignation"]

1. d4 {[%clk 0:03:00.1]} 1... g6 {[%clk 0:03:00.2]} 2. c4 {[%clk 0:02:58.2]}
2... Bg7 {[%clk 0:03:00.5]} 3. Nf3 {[%clk 0:02:57.2]} 3... d6 {[%clk 0:03:01]}
4. Nc3 {[%clk 0:02:57.2]} 4... Nc6 {[%clk 0:02:59.3]} 5. d5 {[%clk 0:02:56.9]}
5... Nb8 {[%clk 0:02:59]} 6. e4 {[%clk 0:02:56.5]} 6... e5 {[%clk 0:02:58.7]} 7.
h4 {[%clk 0:02:53.6]} 7... Bg4 {[%clk 0:02:55.4]} 8. Be2 {[%clk 0:02:53.5]} 8...
Bxf3 {[%clk 0:02:54.3]} 9. Bxf3 {[%clk 0:02:54.4]} 9... h5 {[%clk 0:02:53.9]}
10. g3 {[%clk 0:02:46]} 10... Bh6 {[%clk 0:02:50.2]} 11. Bxh6 {[%clk 0:02:45.3]}
11... Nxh6 {[%clk 0:02:49.9]} 12. b4 {[%clk 0:02:44.2]} 12... Qd7 {[%clk
0:02:48.7]} 13. Bg2 {[%clk 0:02:32.5]} 13... O-O {[%clk 0:02:46.5]} 14. Bh3
{[%clk 0:02:30.9]} 14... Qe7 {[%clk 0:02:45.2]} 15. Qd2 {[%clk 0:02:29.9]} 15...
Kg7 {[%clk 0:02:44.8]} 16. O-O {[%clk 0:02:29.7]} 16... a5 {[%clk 0:02:43.1]}
17. a3 {[%clk 0:02:28.6]} 17... axb4 {[%clk 0:02:37.1]} 18. axb4 {[%clk
0:02:29.5]} 18... Nd7 {[%clk 0:02:36.7]} 19. Nb5 {[%clk 0:02:18.5]} 19... Nf6
{[%clk 0:02:35.3]} 20. Qc2 {[%clk 0:02:13.6]} 20... c6 {[%clk 0:02:26.9]} 21.
dxc6 {[%clk 0:02:06.6]} 21... bxc6 {[%clk 0:02:26.6]} 22. Nc3 {[%clk 0:02:07.4]}
22... Qb7 {[%clk 0:02:22]} 23. Rab1 {[%clk 0:02:01.3]} 23... Nhg4 {[%clk
0:02:12.4]} 24. Rfd1 {[%clk 0:01:58.2]} 24... Rfd8 {[%clk 0:02:11.3]} 25. Rd3
{[%clk 0:01:51.8]} 25... Qa7 {[%clk 0:01:59.7]} 26. Qd2 {[%clk 0:01:40]} 26...
Rab8 {[%clk 0:01:50.5]} 27. Kg2 {[%clk 0:01:35.3]} 27... Ne8 {[%clk 0:01:19.6]}
28. Bxg4 {[%clk 0:01:30.4]} 28... hxg4 {[%clk 0:01:17.5]} 29. h5 {[%clk
0:01:31.3]} 29... Qe7 {[%clk 0:01:11.6]} 30. hxg6 {[%clk 0:01:30.4]} 30... fxg6
{[%clk 0:01:10.3]} 31. b5 {[%clk 0:01:22]} 31... Nf6 {[%clk 0:01:01.5]} 32. Rh1
{[%clk 0:01:08.4]} 32... Qe6 {[%clk 0:00:35.1]} 33. bxc6 {[%clk 0:00:58.5]}
33... Qxc4 {[%clk 0:00:33.5]} 34. c7 {[%clk 0:00:55.6]} 34... Nxe4 {[%clk
0:00:28.1]} 35. cxd8=Q {[%clk 0:00:43.8]} 35... Rxd8 {[%clk 0:00:25.8]} 36. Nxe4
{[%clk 0:00:32.1]} 36... Qxe4+ {[%clk 0:00:25.5]} 37. f3 {[%clk 0:00:32.7]}
37... gxf3+ {[%clk 0:00:21.2]} 38. Rxf3 {[%clk 0:00:33.6]} 38... Rc8 {[%clk
0:00:16.1]} 39. Qh6+ {[%clk 0:00:31.5]} 1-0

[Event "Early-Titled-Tuesday-Blitz-June-18-2024"]
[Site "Chess.com"]
[Date "2024.06.18"]
[Round "3"]
[White "RobertoJBM"]
[Black "Sanyura"]
[Result "1-0"]
[WhiteElo "2810"]
[BlackElo "2506"]
[TimeControl "180+1"]
[EndTime "8:29:21 PDT"]
[Termination "RobertoJBM won by resignation"]

1. d4 {[%clk 0:03:00.9]} 1... Nf6 {[%clk 0:02:59.9]} 2. Nf3 {[%clk 0:03:00.7]}
2... g6 {[%clk 0:03:00.5]} 3. e3 {[%clk 0:03:01.6]} 3... Bg7 {[%clk 0:03:01.1]}
4. b3 {[%clk 0:03:02]} 4... d6 {[%clk 0:03:02]} 5. Bb2 {[%clk 0:03:02.6]} 5...
O-O {[%clk 0:03:02.9]} 6. c4 {[%clk 0:03:02.7]} 6... Nbd7 {[%clk 0:03:03.8]} 7.
d5 {[%clk 0:03:03.1]} 7... a5 {[%clk 0:03:03.1]} 8. Nc3 {[%clk 0:03:02.9]} 8...
c6 {[%clk 0:03:01.9]} 9. dxc6 {[%clk 0:03:02.3]} 9... bxc6 {[%clk 0:03:02.1]}
10. Be2 {[%clk 0:03:02.9]} 10... Ne4 {[%clk 0:02:58.4]} 11. Qc2 {[%clk
0:03:02.4]} 11... Nxc3 {[%clk 0:02:51.6]} 12. Bxc3 {[%clk 0:03:03.3]} 12... a4
{[%clk 0:02:51.8]} 13. Bxg7 {[%clk 0:03:01.5]} 13... Kxg7 {[%clk 0:02:49.9]} 14.
b4 {[%clk 0:02:59.3]} 14... a3 {[%clk 0:02:48.8]} 15. O-O {[%clk 0:02:57.8]}
15... c5 {[%clk 0:02:46.2]} 16. Rab1 {[%clk 0:02:53.7]} 16... cxb4 {[%clk
0:02:45.6]} 17. Rxb4 {[%clk 0:02:53.5]} 17... Nc5 {[%clk 0:02:46.2]} 18. Nd4
{[%clk 0:02:54]} 18... Be6 {[%clk 0:02:42.2]} 19. Bf3 {[%clk 0:02:43.2]} 19...
Rc8 {[%clk 0:02:30.8]} 20. Qc3 {[%clk 0:02:42.4]} 20... Kg8 {[%clk 0:02:29.8]}
21. Qxa3 {[%clk 0:02:41]} 21... Bd7 {[%clk 0:01:53.2]} 22. Rd1 {[%clk
0:02:32.2]} 22... e5 {[%clk 0:01:51.9]} 23. Nb3 {[%clk 0:02:27.1]} 23... Be6
{[%clk 0:01:50.9]} 24. g3 {[%clk 0:01:03.3]} 24... e4 {[%clk 0:01:46.2]} 25. Be2
{[%clk 0:00:59.3]} 25... Nd3 {[%clk 0:01:40.6]} 26. Bxd3 {[%clk 0:00:53.9]}
26... exd3 {[%clk 0:01:41.5]} 27. Nd2 {[%clk 0:00:52.6]} 27... d5 {[%clk
0:01:36.1]} 28. cxd5 {[%clk 0:00:49.1]} 28... Qxd5 {[%clk 0:01:37]} 29. Rd4
{[%clk 0:00:47.1]} 29... Qh5 {[%clk 0:01:36.9]} 30. f3 {[%clk 0:00:43.9]} 30...
Rc2 {[%clk 0:01:24.7]} 31. Qxd3 {[%clk 0:00:43.3]} 31... Rxa2 {[%clk 0:01:24.8]}
32. Rh4 {[%clk 0:00:35.8]} 32... Qc5 {[%clk 0:01:19.3]} 33. Ne4 {[%clk
0:00:28.2]} 33... Qe7 {[%clk 0:01:03.3]} 34. Qd4 {[%clk 0:00:26.4]} 34... f5
{[%clk 0:01:03.8]} 35. Nc5 {[%clk 0:00:21.2]} 35... Rc8 {[%clk 0:00:51.4]} 36.
Nxe6 {[%clk 0:00:13.1]} 36... Qxe6 {[%clk 0:00:52.3]} 37. e4 {[%clk 0:00:08.1]}
37... Rcc2 {[%clk 0:00:36.3]} 38. Qd8+ {[%clk 0:00:07.4]} 38... Kg7 {[%clk
0:00:30.8]} 39. Rd7+ {[%clk 0:00:07.8]} 1-0

[Event "Early-Titled-Tuesday-Blitz-June-18-2024"]
[Site "Chess.com"]
[Date "2024.06.18"]
[Round "3"]
[White "js20000"]
[Black "wonderfultime"]
[Result "1-0"]
[WhiteElo "2792"]
[BlackElo "3049"]
[TimeControl "180+1"]
[EndTime "8:29:22 PDT"]
[Termination "js20000 won by resignation"]

1. e4 {[%clk 0:03:00.9]} 1... c5 {[%clk 0:02:59.4]} 2. Nf3 {[%clk 0:03:00.9]}
2... Nf6 {[%clk 0:03:00]} 3. e5 {[%clk 0:03:00.3]} 3... Nd5 {[%clk 0:03:00.3]}
4. Nc3 {[%clk 0:03:01.2]} 4... e6 {[%clk 0:03:00.3]} 5. Ne4 {[%clk 0:03:01.5]}
5... f5 {[%clk 0:03:00.7]} 6. Nc3 {[%clk 0:03:01.6]} 6... Ne7 {[%clk 0:03:01]}
7. d4 {[%clk 0:02:59.5]} 7... cxd4 {[%clk 0:03:01.1]} 8. Nxd4 {[%clk 0:03:00.4]}
8... a6 {[%clk 0:03:00.5]} 9. h4 {[%clk 0:02:57.4]} 9... Nbc6 {[%clk 0:03:00.7]}
10. Nf3 {[%clk 0:02:57.6]} 10... Ng6 {[%clk 0:02:58.6]} 11. h5 {[%clk
0:02:57.5]} 11... Ngxe5 {[%clk 0:02:56.7]} 12. Nxe5 {[%clk 0:02:57.9]} 12...
Nxe5 {[%clk 0:02:57.6]} 13. Bf4 {[%clk 0:02:56.7]} 13... Nf7 {[%clk 0:02:53.1]}
14. h6 {[%clk 0:02:55.9]} 14... g6 {[%clk 0:02:37]} 15. Qd4 {[%clk 0:02:54.7]}
15... d6 {[%clk 0:02:28.8]} 16. Be3 {[%clk 0:02:40.1]} 16... Be7 {[%clk
0:02:25]} 17. O-O-O {[%clk 0:02:38.3]} 17... Bf6 {[%clk 0:02:18.5]} 18. Qd2
{[%clk 0:02:34.7]} 18... O-O {[%clk 0:02:16.1]} 19. Bc4 {[%clk 0:02:32]} 19...
b5 {[%clk 0:02:07.8]} 20. Bb3 {[%clk 0:02:32.4]} 20... Bd7 {[%clk 0:02:04.5]}
21. Ne2 {[%clk 0:02:32]} 21... a5 {[%clk 0:02:02.6]} 22. Nf4 {[%clk 0:02:29.3]}
22... Re8 {[%clk 0:01:56.7]} 23. a3 {[%clk 0:02:28.2]} 23... b4 {[%clk
0:01:49.6]} 24. a4 {[%clk 0:02:27.8]} 24... Re7 {[%clk 0:01:34.2]} 25. g4 {[%clk
0:02:26.2]} 25... fxg4 {[%clk 0:01:27.1]} 26. Rdg1 {[%clk 0:02:25.4]} 26... Kh8
{[%clk 0:01:01.9]} 27. Rxg4 {[%clk 0:02:21.9]} 27... Ne5 {[%clk 0:00:55.4]} 28.
Rg3 {[%clk 0:02:21.4]} 28... Qc7 {[%clk 0:00:43.7]} 29. Bd4 {[%clk 0:02:17.9]}
29... Rf8 {[%clk 0:00:42.3]} 30. Rhg1 {[%clk 0:02:12.9]} 30... d5 {[%clk
0:00:39.3]} 31. Bxd5 {[%clk 0:02:08.2]} 31... exd5 {[%clk 0:00:27.1]} 32. Nxd5
{[%clk 0:02:09.1]} 32... Qd6 {[%clk 0:00:26.7]} 33. Nxe7 {[%clk 0:02:04.5]}
33... Nc4 {[%clk 0:00:17.9]} 34. Rxg6 {[%clk 0:01:15.8]} 34... hxg6 {[%clk
0:00:04.8]} 35. Nxg6+ {[%clk 0:01:15.4]} 35... Kg8 {[%clk 0:00:04.6]} 36. Ne5+
{[%clk 0:00:41.8]} 36... Kh7 {[%clk 0:00:04.4]} 37. Qd3+ {[%clk 0:00:40.7]}
37... Kh8 {[%clk 0:00:03.8]} 38. Ng6+ {[%clk 0:00:37.9]} 38... Kg8 {[%clk
0:00:04.4]} 39. Qxc4+ {[%clk 0:00:35.9]} 39... Be6 {[%clk 0:00:05]} 40. Nf4+
{[%clk 0:00:34.4]} 40... Kh7 {[%clk 0:00:03.9]} 41. Nxe6 {[%clk 0:00:34]} 1-0

[Event "Early-Titled-Tuesday-Blitz-June-18-2024"]
[Site "Chess.com"]
[Date "2024.06.18"]
[Round "3"]
[White "Sam_ChessMood"]
[Black "NovakCabarkapa"]
[Result "0-1"]
[WhiteElo "2946"]
[BlackElo "2751"]
[TimeControl "180+1"]
[EndTime "8:29:22 PDT"]
[Termination "NovakCabarkapa won by checkmate"]

1. d4 {[%clk 0:03:00.9]} 1... Nf6 {[%clk 0:02:59.6]} 2. Bg5 {[%clk 0:02:58.5]}
2... Ne4 {[%clk 0:02:58.9]} 3. Bh4 {[%clk 0:02:55.9]} 3... c6 {[%clk 0:02:58.6]}
4. Nd2 {[%clk 0:02:51.5]} 4... Qa5 {[%clk 0:02:53.6]} 5. c3 {[%clk 0:02:44.1]}
5... Qh5 {[%clk 0:02:51.9]} 6. Ngf3 {[%clk 0:02:40.1]} 6... d5 {[%clk 0:02:50]}
7. Qc1 {[%clk 0:02:09.6]} 7... f6 {[%clk 0:02:40.6]} 8. h3 {[%clk 0:01:49.1]}
8... g5 {[%clk 0:02:37.9]} 9. g4 {[%clk 0:01:47.9]} 9... Qf7 {[%clk 0:02:26.7]}
10. Bg3 {[%clk 0:01:46.8]} 10... Nxg3 {[%clk 0:02:26.7]} 11. fxg3 {[%clk
0:01:46.7]} 11... h5 {[%clk 0:02:20.7]} 12. gxh5 {[%clk 0:01:45]} 12... g4
{[%clk 0:02:20.1]} 13. hxg4 {[%clk 0:01:32.3]} 13... Bxg4 {[%clk 0:02:21]} 14.
Qc2 {[%clk 0:01:24.2]} 14... Rxh5 {[%clk 0:02:16]} 15. Rxh5 {[%clk 0:01:22.7]}
15... Qxh5 {[%clk 0:02:15.6]} 16. Qb3 {[%clk 0:01:22]} 16... Bc8 {[%clk
0:02:11.7]} 17. O-O-O {[%clk 0:01:17.8]} 17... Nd7 {[%clk 0:02:02.8]} 18. Bg2
{[%clk 0:01:10.1]} 18... Nb6 {[%clk 0:01:53]} 19. a4 {[%clk 0:01:08.9]} 19...
Bh6 {[%clk 0:01:48.3]} 20. Kb1 {[%clk 0:00:31]} 20... Qg6+ {[%clk 0:01:44.7]}
21. Ka1 {[%clk 0:00:30.1]} 21... Qxg3 {[%clk 0:01:44.2]} 22. Bh1 {[%clk
0:00:27.6]} 22... Bf5 {[%clk 0:01:12.9]} 23. Rg1 {[%clk 0:00:25.2]} 23... Qf2
{[%clk 0:01:08]} 24. Rg8+ {[%clk 0:00:24.2]} 24... Kf7 {[%clk 0:01:07.6]} 25.
Rxa8 {[%clk 0:00:21.5]} 25... Bxd2 {[%clk 0:01:01.9]} 26. Nxd2 {[%clk 0:00:16]}
26... Qe1+ {[%clk 0:01:00.4]} 27. Ka2 {[%clk 0:00:15.6]} 27... Qxd2 {[%clk
0:00:56.1]} 28. Rxa7 {[%clk 0:00:14.1]} 28... Nc4 {[%clk 0:00:36.4]} 29. Qxb7
{[%clk 0:00:13.8]} 29... Kg6 {[%clk 0:00:36.6]} 30. Qb4 {[%clk 0:00:03.7]} 30...
Qc1 {[%clk 0:00:27.3]} 31. e4 {[%clk 0:00:03.7]} 31... Nd2 {[%clk 0:00:27.6]}
32. exf5+ {[%clk 0:00:03.5]} 32... Kg5 {[%clk 0:00:26.5]} 33. Rxe7 {[%clk
0:00:02.8]} 33... Qb1+ {[%clk 0:00:25.8]} 34. Ka3 {[%clk 0:00:03.1]} 34... Qa1#
{[%clk 0:00:26.2]} 0-1

[Event "Early-Titled-Tuesday-Blitz-June-18-2024"]
[Site "Chess.com"]
[Date "2024.06.18"]
[Round "3"]
[White "AlphaPerseii"]
[Black "ElCoachRene"]
[Result "1-0"]
[WhiteElo "2394"]
[BlackElo "2069"]
[TimeControl "180+1"]
[EndTime "8:29:23 PDT"]
[Termination "AlphaPerseii won by resignation"]

1. Nf3 {[%clk 0:03:00.9]} 1... d5 {[%clk 0:02:59]} 2. c4 {[%clk 0:02:59.8]} 2...
c6 {[%clk 0:02:58.4]} 3. d4 {[%clk 0:02:55.4]} 3... Bf5 {[%clk 0:02:57.7]} 4.
Nc3 {[%clk 0:02:53.5]} 4... e6 {[%clk 0:02:57.9]} 5. Qb3 {[%clk 0:02:34.9]} 5...
Qb6 {[%clk 0:02:56.8]} 6. c5 {[%clk 0:02:34]} 6... Qxb3 {[%clk 0:02:53.9]} 7.
axb3 {[%clk 0:02:34.9]} 7... Nd7 {[%clk 0:02:53.4]} 8. Bf4 {[%clk 0:02:25.9]}
8... a6 {[%clk 0:02:52.8]} 9. b4 {[%clk 0:02:25.1]} 9... Rc8 {[%clk 0:02:52.5]}
10. h3 {[%clk 0:02:10.7]} 10... Ngf6 {[%clk 0:02:51.3]} 11. g4 {[%clk
0:02:08.8]} 11... Bc2 {[%clk 0:02:50.1]} 12. Kd2 {[%clk 0:01:53.4]} 12... Bb3
{[%clk 0:02:43.8]} 13. Ra3 {[%clk 0:01:40.3]} 13... Bc4 {[%clk 0:02:30.5]} 14.
e3 {[%clk 0:01:40.7]} 14... Bxf1 {[%clk 0:02:24.6]} 15. Rxf1 {[%clk 0:01:41.6]}
15... h6 {[%clk 0:02:24]} 16. Ke2 {[%clk 0:01:39.5]} 16... Be7 {[%clk
0:02:22.6]} 17. Nd2 {[%clk 0:01:32.2]} 17... O-O {[%clk 0:02:19.5]} 18. Nb3
{[%clk 0:01:32.6]} 18... Bd8 {[%clk 0:02:19.3]} 19. Na5 {[%clk 0:01:32]} 19...
Bxa5 {[%clk 0:02:18]} 20. Rxa5 {[%clk 0:01:32.9]} 20... Rfe8 {[%clk 0:02:17.3]}
21. Be5 {[%clk 0:01:28.3]} 21... Nxe5 {[%clk 0:02:14.4]} 22. dxe5 {[%clk
0:01:29.2]} 22... Nd7 {[%clk 0:02:13.1]} 23. f4 {[%clk 0:01:29.8]} 23... f6
{[%clk 0:02:09.2]} 24. exf6 {[%clk 0:01:25.5]} 24... Nxf6 {[%clk 0:02:09.1]} 25.
Raa1 {[%clk 0:01:17.9]} 25... Rcd8 {[%clk 0:02:01.9]} 26. Rad1 {[%clk
0:01:15.2]} 26... e5 {[%clk 0:01:58]} 27. f5 {[%clk 0:01:15.2]} 27... d4 {[%clk
0:01:53.1]} 28. Na2 {[%clk 0:01:13.3]} 28... Nd5 {[%clk 0:01:42.3]} 29. e4
{[%clk 0:01:10.3]} 29... Ne3 {[%clk 0:01:42.1]} 30. Nc1 {[%clk 0:01:05.3]} 30...
Nxf1 {[%clk 0:01:38.8]} 31. Rxf1 {[%clk 0:01:06.2]} 31... Rf8 {[%clk 0:01:31]}
32. Nd3 {[%clk 0:01:06]} 32... Rde8 {[%clk 0:01:30.4]} 33. h4 {[%clk 0:01:02]}
33... Rf6 {[%clk 0:01:18.8]} 34. g5 {[%clk 0:00:54.3]} 34... hxg5 {[%clk
0:01:18.1]} 35. hxg5 {[%clk 0:00:55.2]} 35... Rff8 {[%clk 0:01:15.7]} 36. Kf3
{[%clk 0:00:54.1]} 36... Kf7 {[%clk 0:01:15.5]} 37. Rh1 {[%clk 0:00:52.4]} 37...
Re7 {[%clk 0:01:00.7]} 38. Kg4 {[%clk 0:00:43.7]} 38... Ra8 {[%clk 0:00:59.3]}
39. b3 {[%clk 0:00:20.6]} 39... a5 {[%clk 0:00:56.6]} 40. g6+ {[%clk 0:00:20.9]}
40... Kf6 {[%clk 0:00:54.1]} 41. bxa5 {[%clk 0:00:20.2]} 41... Rxa5 {[%clk
0:00:52.5]} 42. Rh8 {[%clk 0:00:20.9]} 42... Rc7 {[%clk 0:00:36.6]} 43. Re8
{[%clk 0:00:21.2]} 43... Re7 {[%clk 0:00:34.7]} 44. Rf8+ {[%clk 0:00:21.7]} 1-0

[Event "Early-Titled-Tuesday-Blitz-June-18-2024"]
[Site "Chess.com"]
[Date "2024.06.18"]
[Round "3"]
[White "patzer-reloaded"]
[Black "talaicito"]
[Result "0-1"]
[WhiteElo "2478"]
[BlackElo "2268"]
[TimeControl "180+1"]
[EndTime "8:29:25 PDT"]
[Termination "talaicito won on time"]

1. d3 {[%clk 0:03:00.9]} 1... e5 {[%clk 0:02:59.1]} 2. Nf3 {[%clk 0:03:01.1]}
2... d6 {[%clk 0:02:59.2]} 3. g3 {[%clk 0:03:01.4]} 3... f5 {[%clk 0:02:59.7]}
4. Bg2 {[%clk 0:03:01.9]} 4... Nf6 {[%clk 0:03:00.3]} 5. O-O {[%clk 0:03:02.3]}
5... Be7 {[%clk 0:03:00.7]} 6. c4 {[%clk 0:03:02.4]} 6... O-O {[%clk 0:03:01.2]}
7. Nc3 {[%clk 0:03:02.7]} 7... Kh8 {[%clk 0:03:01.8]} 8. b4 {[%clk 0:02:52.4]}
8... Qe8 {[%clk 0:02:57.2]} 9. Bg5 {[%clk 0:02:41.9]} 9... Nbd7 {[%clk
0:02:53.1]} 10. Nd5 {[%clk 0:02:30.4]} 10... Bd8 {[%clk 0:02:52.1]} 11. Bxf6
{[%clk 0:02:18.8]} 11... Nxf6 {[%clk 0:02:51.4]} 12. b5 {[%clk 0:02:05.1]} 12...
Nxd5 {[%clk 0:02:40.2]} 13. cxd5 {[%clk 0:02:04.1]} 13... Qxb5 {[%clk
0:02:40.7]} 14. Nd2 {[%clk 0:01:56.2]} 14... a5 {[%clk 0:02:33.2]} 15. a4 {[%clk
0:01:54.5]} 15... Qe8 {[%clk 0:02:26]} 16. Rb1 {[%clk 0:01:43.9]} 16... b6
{[%clk 0:02:26.1]} 17. Qc2 {[%clk 0:01:33.3]} 17... Bd7 {[%clk 0:02:25.7]} 18.
Ra1 {[%clk 0:01:32.9]} 18... Qh5 {[%clk 0:02:18.5]} 19. e3 {[%clk 0:01:24]}
19... f4 {[%clk 0:02:11.7]} 20. exf4 {[%clk 0:01:08.6]} 20... exf4 {[%clk
0:02:12.6]} 21. Rfe1 {[%clk 0:00:59.8]} 21... f3 {[%clk 0:01:40.6]} 22. Bf1
{[%clk 0:00:59.1]} 22... Bh3 {[%clk 0:01:38.2]} 23. Bxh3 {[%clk 0:00:55.3]}
23... Qxh3 {[%clk 0:01:37.3]} 24. Nxf3 {[%clk 0:00:54.8]} 24... Qf5 {[%clk
0:01:17.1]} 25. Nd4 {[%clk 0:00:49.2]} 25... Qxd5 {[%clk 0:01:07.8]} 26. Ne6
{[%clk 0:00:41.9]} 26... Rf7 {[%clk 0:01:06.5]} 27. Nf4 {[%clk 0:00:35.3]} 27...
Qf5 {[%clk 0:00:46.4]} 28. Qc6 {[%clk 0:00:22.3]} 28... Rb8 {[%clk 0:00:41.3]}
29. Re8+ {[%clk 0:00:20.4]} 29... Rf8 {[%clk 0:00:40.9]} 30. Ne6 {[%clk
0:00:19.8]} 30... Qxf2+ {[%clk 0:00:34.4]} 31. Kh1 {[%clk 0:00:18.2]} 31... Bf6
{[%clk 0:00:28.7]} 32. Nxf8 {[%clk 0:00:02.7]} 32... Rxe8 {[%clk 0:00:22.9]} 33.
Ng6+ {[%clk 0:00:01]} 33... hxg6 {[%clk 0:00:21.2]} 34. Qxe8+ {[%clk 0:00:01]}
34... Kh7 {[%clk 0:00:21.2]} 0-1

[Event "Early-Titled-Tuesday-Blitz-June-18-2024"]
[Site "Chess.com"]
[Date "2024.06.18"]
[Round "3"]
[White "Sek_Konstantin"]
[Black "Durarbayli"]
[Result "0-1"]
[WhiteElo "2722"]
[BlackElo "2943"]
[TimeControl "180+1"]
[EndTime "8:29:27 PDT"]
[Termination "Durarbayli won on time"]

1. e4 {[%clk 0:03:00.9]} 1... c5 {[%clk 0:03:00.3]} 2. Nf3 {[%clk 0:03:00.3]}
2... d6 {[%clk 0:03:00.9]} 3. Bb5+ {[%clk 0:02:59.1]} 3... Bd7 {[%clk
0:03:00.1]} 4. Bxd7+ {[%clk 0:02:58.8]} 4... Qxd7 {[%clk 0:03:01]} 5. c4 {[%clk
0:02:59.1]} 5... g6 {[%clk 0:03:01.2]} 6. Nc3 {[%clk 0:02:59.3]} 6... Bg7 {[%clk
0:03:01]} 7. d4 {[%clk 0:02:58.8]} 7... Nc6 {[%clk 0:03:01.1]} 8. d5 {[%clk
0:02:54.9]} 8... Bxc3+ {[%clk 0:03:00.9]} 9. bxc3 {[%clk 0:02:54.3]} 9... Na5
{[%clk 0:03:01]} 10. Nd2 {[%clk 0:02:41.7]} 10... e5 {[%clk 0:02:45.2]} 11. O-O
{[%clk 0:02:37.4]} 11... Nf6 {[%clk 0:02:39.9]} 12. Rb1 {[%clk 0:02:35.8]} 12...
O-O {[%clk 0:02:31.1]} 13. h3 {[%clk 0:01:51.3]} 13... Rae8 {[%clk 0:02:26.9]}
14. Rb5 {[%clk 0:01:38.7]} 14... b6 {[%clk 0:02:25.4]} 15. a4 {[%clk 0:01:37.7]}
15... Kg7 {[%clk 0:02:23.1]} 16. f4 {[%clk 0:01:33.3]} 16... exf4 {[%clk
0:02:16.8]} 17. Rxf4 {[%clk 0:01:33.1]} 17... Nh5 {[%clk 0:02:11.5]} 18. Rf3
{[%clk 0:01:30.3]} 18... f5 {[%clk 0:01:58.6]} 19. exf5 {[%clk 0:01:19.5]} 19...
Rxf5 {[%clk 0:01:59.5]} 20. g4 {[%clk 0:00:59.4]} 20... Rxf3 {[%clk 0:01:37.1]}
21. Nxf3 {[%clk 0:00:57.3]} 21... Ng3 {[%clk 0:01:36.2]} 22. Ng5 {[%clk
0:00:49]} 22... Ne2+ {[%clk 0:01:02.5]} 23. Kg2 {[%clk 0:00:48.1]} 23... Nxc4
{[%clk 0:00:36.3]} 24. Ne6+ {[%clk 0:00:43.7]} 24... Rxe6 {[%clk 0:00:36]} 25.
dxe6 {[%clk 0:00:44]} 25... Qxe6 {[%clk 0:00:36.9]} 26. Qe1 {[%clk 0:00:07.5]}
26... Qe5 {[%clk 0:00:17.5]} 27. Kf2 {[%clk 0:00:04.8]} 27... Qh2+ {[%clk
0:00:12.4]} 28. Kf3 {[%clk 0:00:01.8]} 28... Ne5+ {[%clk 0:00:11.2]} 29. Ke4
{[%clk 0:00:01.5]} 29... Qg2+ {[%clk 0:00:11.4]} 0-1

[Event "Early-Titled-Tuesday-Blitz-June-18-2024"]
[Site "Chess.com"]
[Date "2024.06.18"]
[Round "3"]
[White "FollowRivers"]
[Black "Shiner22"]
[Result "1-0"]
[WhiteElo "2501"]
[BlackElo "2271"]
[TimeControl "180+1"]
[EndTime "8:29:28 PDT"]
[Termination "FollowRivers won by resignation"]

1. e4 {[%clk 0:03:00.9]} 1... c5 {[%clk 0:02:59.3]} 2. Nf3 {[%clk 0:03:00.4]}
2... Nc6 {[%clk 0:02:59.7]} 3. d4 {[%clk 0:02:59.8]} 3... cxd4 {[%clk
0:02:59.6]} 4. Nxd4 {[%clk 0:03:00.7]} 4... e5 {[%clk 0:02:59.8]} 5. Nb5 {[%clk
0:03:00.2]} 5... a6 {[%clk 0:03:00]} 6. Nd6+ {[%clk 0:02:59.3]} 6... Bxd6 {[%clk
0:03:00.2]} 7. Qxd6 {[%clk 0:03:00]} 7... Qf6 {[%clk 0:03:00.4]} 8. Qd1 {[%clk
0:02:56]} 8... Qg6 {[%clk 0:03:00.1]} 9. Nc3 {[%clk 0:02:56.6]} 9... d5 {[%clk
0:02:59.8]} 10. Nxd5 {[%clk 0:02:56.6]} 10... Qxe4+ {[%clk 0:02:58.8]} 11. Ne3
{[%clk 0:02:37.6]} 11... Nf6 {[%clk 0:02:57.2]} 12. Bd3 {[%clk 0:02:36.4]} 12...
Qb4+ {[%clk 0:02:57.2]} 13. c3 {[%clk 0:02:35.4]} 13... Qe7 {[%clk 0:02:57.1]}
14. Nf5 {[%clk 0:02:30.1]} 14... Bxf5 {[%clk 0:02:55.9]} 15. Bxf5 {[%clk
0:02:31]} 15... e4 {[%clk 0:02:52.5]} 16. O-O {[%clk 0:02:29.5]} 16... Qe5
{[%clk 0:02:46.2]} 17. Bh3 {[%clk 0:02:14.6]} 17... O-O {[%clk 0:02:41.8]} 18.
g3 {[%clk 0:02:01.8]} 18... Rad8 {[%clk 0:02:37.7]} 19. Qe2 {[%clk 0:02:01.5]}
19... Rfe8 {[%clk 0:02:27.6]} 20. Bf4 {[%clk 0:02:00.3]} 20... Qc5 {[%clk
0:02:15.8]} 21. Rad1 {[%clk 0:01:55.1]} 21... Nd5 {[%clk 0:02:09.4]} 22. Bg5
{[%clk 0:01:42.3]} 22... Nxc3 {[%clk 0:01:55.1]} 23. bxc3 {[%clk 0:01:43.2]}
23... Qxg5 {[%clk 0:01:53.7]} 24. Bd7 {[%clk 0:01:36.9]} 24... Ne5 {[%clk
0:01:34.3]} 25. Bxe8 {[%clk 0:01:34.1]} 25... Nf3+ {[%clk 0:01:30.7]} 26. Kg2
{[%clk 0:01:27]} 26... Qh5 {[%clk 0:01:20.5]} 27. Bxf7+ {[%clk 0:00:58.3]} 27...
Kxf7 {[%clk 0:01:19.6]} 28. Qc4+ {[%clk 0:00:58.1]} 28... Kf6 {[%clk 0:01:04.4]}
29. Qxe4 {[%clk 0:00:35.5]} 29... Rxd1 {[%clk 0:00:52.6]} 30. Rxd1 {[%clk
0:00:31.3]} 30... Ng5 {[%clk 0:00:18.1]} 31. Rd6+ {[%clk 0:00:29.3]} 31... Kf7
{[%clk 0:00:15.7]} 32. Rd7+ {[%clk 0:00:29.4]} 32... Kf6 {[%clk 0:00:12.6]} 33.
Qe7+ {[%clk 0:00:27.4]} 33... Kg6 {[%clk 0:00:10.1]} 34. Rd6+ {[%clk 0:00:24.2]}
34... Kf5 {[%clk 0:00:09.9]} 35. Rd5+ {[%clk 0:00:21.9]} 35... Kg6 {[%clk
0:00:08.5]} 36. Qe8+ {[%clk 0:00:22]} 36... Kh6 {[%clk 0:00:06.2]} 37. Qxh5+
{[%clk 0:00:21.6]} 1-0